[Event "UZB-ch Women 2019"]
[Site "Tashkent"]
[Date "2019.05.10"]
[Round "7.4"]
[White "Khusainova, Ozoda"]
[Black "Hamrakulova, Yulduz"]
[Result "1/2-1/2"]
[ECO "E10"]
[WhiteElo "1674"]
[BlackElo "2009"]
[Annotator "NA"]
[PlyCount "122"]
[EventDate "2019.05.04"]
[EventType "tourn"]
[EventCountry "UZB"]
[SourceTitle "playchess.com"]
[Source "ChessBase"]
[SourceQuality "1"]
[TimeControl "5400+30"]

1. d4 {[%emt 0:00:21]} Nf6 {[%emt 0:00:00]} 2. c4 {[%emt 0:00:27]} e6 {[%emt 0:00:00]} 3. Nf3 {[%emt 0:00:06]} d5 {[%emt 0:01:04]} 4. cxd5 {[%emt 0:00:08]} exd5 {[%emt 0:00:09]} 5. Bg5 {[%emt 0:00:07]} Nbd7 {[%emt 0:01:58]} 6. Nc3 {[%emt 0:00:44]} Bb4 {[%emt 0:01:52]} 7. e3 {[%emt 0:04:14]} c5 {[%emt 0:00:41]} 8. Nd2 {[%emt 0:07:23] D38: Queen's Gambit Declined: Ragozin Defence (4 Nf3 Bb4)} (8. Bd3 Qa5 9. O-O Bxc3 10. bxc3 c4 11. Bf5 Qxc3 12. Bxf6 gxf6 13. Qa4 a6 14. Rab1 b5 15. Rxb5 axb5 16. Qxa8 O-O 17. Qxd5 Nb6 18. Qxb5 Bxf5 19. Qxf5 Qd3 20. Qxf6 Na4 21. Ne5 Qe4 22. Nxc4 {1-0 (22) Sarana,A (2618)-Sjugirov,S (2663) St Petersburg 2018}) 8... Bxc3 {[%emt 0:17:25]} 9. bxc3 {[%emt 0:00:16]} O-O {[%emt 0:00:30]} 10. Be2 $146 {[%emt 0:03:58]} ({Predecessor:} 10. Bd3 c4 11. Bc2 Qa5 12. Qc1 Re8 13. Bh4 Qa6 14. O-O Ne4 15. Nxe4 dxe4 {1-0 (29) Garcia Trobat,F (2305)-Reig Albero,F Ateneo 1992}) 10... Re8 {[%emt 0:05:15]} 11. O-O {[%emt 0:03:30]} h6 {[%emt 0:25:23]} 12. Bh4 {[%emt 0:03:06]} b6 {[%emt 0:05:42]} 13. Bf3 {[%emt 0:08:27]} g5 {[%emt 0:06:05]} 14. Bg3 {[%emt 0:01:05]} Ba6 {[%emt 0:07:53]} 15. Be2 {[%emt 0:02:48]} Bxe2 {[%emt 0:04:34]} 16. Qxe2 {[%emt 0:00:10]} Qe7 {[%emt 0:01:44]} 17. Rae1 {[%emt 0:02:04]} Rac8 {[%emt 0:04:36]} 18. Rc1 {[%emt 0:13:57]} Rc6 {[%emt 0:06:45]} 19. Qa6 {[%emt 0:05:23]} Nf8 {[%emt 0:02:23]} 20. dxc5 {[%emt 0:01:35]} Rxc5 {[%emt 0:00:38]} 21. Nb3 {[%emt 0:00:14]} Rc4 {[%emt 0:00:55]} 22. Nd4 {[%emt 0:00:19]} Ne4 {[%emt 0:01:19]} 23. Ne2 {[%emt 0:07:40]} Ne6 {[%emt 0:02:17]} 24. Rfd1 {[%emt 0:01:17]} Rc5 {[%emt 0:01:43]} 25. Qd3 {[%emt 0:02:43]} Qf6 {[%emt 0:00:24]} 26. f3 {[%emt 0:06:34]} Nxg3 {[%emt 0:00:17]} 27. Nxg3 {[%emt 0:00:02]} Rec8 $11 {[%emt 0:00:08]} 28. Qf5 {[%emt 0:05:29]} Qxf5 {[%emt 0:00:51]} 29. Nxf5 {[%emt 0:00:03]} Kh7 {[%emt 0:00:01]} 30. Ne7 {[%emt 0:02:18]} Rd8 {[%emt 0:00:18]} 31. Rd3 {[%emt 0:00:49]} d4 {[%emt 0:01:25]} 32. exd4 {[%emt 0:08:01]} Rxd4 {[%emt 0:00:24]} 33. Rcd1 {[%emt 0:04:14]} Rxd3 {[%emt 0:00:13]} 34. Rxd3 {[%emt 0:00:02]} Nf4 {[%emt 0:00:00]} 35. Re3 {[%emt 0:03:03]} Rxc3 {[%emt 0:00:13]} 36. Rxc3 {[%emt 0:00:30]} Ne2+ {[%emt 0:00:00]} 37. Kf2 {[%emt 0:00:09]} Nxc3 {[%emt 0:00:01]} 38. Nc8 {[%emt 0:00:38]} Nxa2 {[%emt 0:00:29]} 39. Nxa7 {[%emt 0:00:08]} Nc3 {[%emt 0:00:21]} 40. Ke3 {[%emt 0:01:03]} Kg6 {[%emt 0:00:33]} 41. Kd4 {[%emt 0:00:40]} Na4 {[%emt 0:00:52]} 42. Nc6 {[%emt 0:01:34]} f5 {[%emt 0:01:56]} 43. Ne7+ {[%emt 0:00:45]} Kf6 {[%emt 0:00:12]} 44. Ng8+ {[%emt 0:00:56]} Kg7 {[%emt 0:00:09]} 45. Ne7 {[%emt 0:00:07]} f4 {[%emt 0:00:31]} 46. g3 {[%emt 0:01:08]} fxg3 {[%emt 0:00:22]} 47. hxg3 {[%emt 0:00:01]} Kf6 {[%emt 0:01:22]} 48. Nd5+ {[%emt 0:01:04]} Kg6 {[%emt 0:00:21]} 49. Ne7+ {[%emt 0:00:23]} Kf7 {[%emt 0:00:17]} 50. Nd5 {[%emt 0:00:28]} h5 {[%emt 0:00:30]} 51. Ke5 {[%emt 0:00:41]} Kg6 {[%emt 0:00:18]} 52. Ne7+ {[%emt 0:00:29]} Kf7 {[%emt 0:00:39]} 53. Nd5 {[%emt 0:00:19]} Kg6 {[%emt 0:01:07]} 54. Ne7+ {[%emt 0:00:13]} Kf7 {[%emt 0:00:18]} 55. Nd5 {[%emt 0:00:19]} h4 {[%emt 0:00:17]} 56. gxh4 {[%emt 0:00:25]} gxh4 {[%emt 0:00:02]} 57. Kf4 {[%emt 0:00:13]} Ke6 {[%emt 0:00:12]} 58. Nxb6 {[%emt 0:00:08]} Nxb6 {[%emt 0:00:13]} 59. Kg4 {[%emt 0:00:04]} Ke5 {[%emt 0:00:33]} 60. Kxh4 {[%emt 0:00:08]} Kf4 {[%emt 0:00:07]} 61. Kh5 {[%emt 0:00:05]} Nd7 {[%emt 0:00:08]} 1/2-1/2

[Event "UZB-ch Women 2019"]
[Site "Tashkent"]
[Date "2019.05.10"]
[Round "7.5"]
[White "Gevorgyan, Irina"]
[Black "Omonova, Umida"]
[Result "1/2-1/2"]
[ECO "D26"]
[WhiteElo "2315"]
[BlackElo "2083"]
[Annotator "NA"]
[PlyCount "43"]
[EventDate "2019.05.04"]
[EventType "tourn"]
[EventCountry "UZB"]
[SourceTitle "playchess.com"]
[Source "ChessBase"]
[SourceQuality "1"]
[TimeControl "5400+30"]

1. d4 {[%emt 0:00:00]} d5 {[%emt 0:00:18]} 2. c4 {[%emt 0:00:00]} dxc4 {[%emt 0:00:33]} 3. Nf3 {[%emt 0:00:04]} Nf6 {[%emt 0:01:12]} 4. e3 {[%emt 0:00:10]} e6 {[%emt 0:00:25]} 5. Bxc4 {[%emt 0:00:04]} c5 {[%emt 0:00:36]} 6. Qe2 {[%emt 0:01:57]} a6 {[%emt 0:00:43]} 7. dxc5 {[%emt 0:00:10]} Bxc5 {[%emt 0:00:53]} 8. O-O {[%emt 0:00:37]} O-O {[%emt 0:01:01]} 9. e4 {[%emt 0:13:47]} Nc6 {[%emt 0:07:28]} 10. Nc3 {[%emt 0:17:45]} b5 {[%emt 0:07:51]} 11. Bb3 {[%emt 0:01:50]} e5 {[%emt 0:12:24]} 12. h3 {[%emt 0:27:53]} Be6 {[%emt 0:06:03]} 13. Bg5 {[%emt 0:03:40]} h6 {[%emt 0:05:53]} 14. Bxf6 {[%emt 0:00:33]} Qxf6 {[%emt 0:00:09]} 15. Nd5 {[%emt 0:01:12]} Bxd5 {[%emt 0:01:18]} 16. Bxd5 {[%emt 0:00:13]} Rac8 {[%emt 0:00:27]} 17. Rac1 {[%emt 0:04:05]} Nd4 {[%emt 0:00:49]} 18. Nxd4 {[%emt 0:00:15]} Bxd4 {[%emt 0:00:04]} 19. Rc2 {[%emt 0:03:17]} Rc5 {[%emt 0:07:07]} 20. Rfc1 {[%emt 0:04:18]} Rfc8 {[%emt 0:01:52]} 21. Rxc5 {[%emt 0:00:11]} Rxc5 {[%emt 0:01:37]} 22. Rxc5 {[%emt 0:00:27]} 1/2-1/2

[Event "UZB-ch Women 2019"]
[Site "Tashkent"]
[Date "2019.05.11"]
[Round "8.3"]
[White "Abdusattorova, Bakhora"]
[Black "Khusainova, Ozoda"]
[Result "1-0"]
[ECO "C42"]
[WhiteElo "2094"]
[BlackElo "1674"]
[Annotator "NA RC"]
[PlyCount "67"]
[EventDate "2019.05.04"]
[EventType "tourn"]
[EventCountry "UZB"]
[SourceTitle "playchess.com"]
[Source "ChessBase"]
[SourceQuality "1"]
[TimeControl "5400+30"]

1. e4 {[%emt 0:00:00]} e5 {[%emt 0:00:41]} 2. Nf3 {[%emt 0:00:17]} Nf6 {[%emt 0:00:11]} 3. Nxe5 {[%emt 0:03:52]} d6 {[%emt 0:00:09]} 4. Nc4 {[%emt 0:00:42]} Nxe4 {[%emt 0:01:27]} 5. d3 {[%emt 0:00:23]} Nf6 {[%emt 0:00:23]} 6. Be2 {[%emt 0:00:40]} Be7 {[%emt 0:00:47]} 7. O-O {[%emt 0:00:28]} O-O {[%emt 0:00:09]} 8. d4 {[%emt 0:02:56]} d5 {[%emt 0:00:25]} 9. Ne5 {[%emt 0:00:24]} Ne4 {[%emt 0:02:05]} 10. Bd3 {[%emt 0:05:07]} f6 {[%emt 0:02:20]} 11. Ng4 {[%emt 0:02:38]} Nc6 {[%emt 0:01:38]} 12. c3 {[%emt 0:01:14]} f5 {[%emt 0:03:19]} 13. Ne5 {[%emt 0:01:11]} Nxe5 {[%emt 0:01:18]} 14. dxe5 {[%emt 0:00:01]} c6 {[%emt 0:04:02]} 15. Nd2 {[%emt 0:01:50]} Bc5 {[%emt 0:03:27]} 16. Nf3 {[%emt 0:02:34]} b5 {[%emt 0:09:47]} 17. Qc2 {[%emt 0:07:15]} a5 {[%emt 0:06:02]} 18. Nd4 {[%emt 0:17:53]} Qb6 {[%emt 0:05:27]} 19. Nb3 {[%emt 0:00:43]} Bd7 {[%emt 0:04:03]} 20. Nxc5 {[%emt 0:05:09]} Qxc5 {[%emt 0:00:41]} 21. a4 {[%emt 0:01:46]} b4 {[%emt 0:09:57]} 22. Be3 {[%emt 0:00:32]} Qe7 {[%emt 0:00:10]} 23. cxb4 {[%emt 0:03:36]} Qxe5 {[%emt 0:06:59]} 24. f3 {[%emt 0:01:52]} Nf6 {[%emt 0:12:55]} 25. Rfe1 {[%emt 0:01:12]} Rfe8 {[%emt 0:02:15]} 26. bxa5 {[%emt 0:01:56]} f4 {[%emt 0:05:04]} 27. Bf2 {[%emt 0:01:31]} Qc7 {[%emt 0:01:11]} 28. Rxe8+ {[%emt 0:00:49]} Rxe8 {[%emt 0:00:24]} 29. a6 {[%emt 0:00:15]} Qa5 {[%emt 0:04:03]} 30. Qc3 {[%emt 0:01:51]} Qxc3 {[%emt 0:02:33]} 31. bxc3 {[%emt 0:00:01]} Be6 {[%emt 0:02:01]} 32. a7 {[%emt 0:01:10]} Bf7 {[%emt 0:01:08]} 33. Rb1 {[%emt 0:00:17]} Nd7 {[%emt 0:00:56]} 34. Bf5 {[%emt 0:00:06]} 1-0

[Event "UZB-ch Women 2019"]
[Site "Tashkent"]
[Date "2019.05.12"]
[Round "9.5"]
[White "Omonova, Umida"]
[Black "Hamrakulova, Yulduz"]
[Result "1-0"]
[ECO "C50"]
[WhiteElo "2083"]
[BlackElo "2009"]
[Annotator "NA RC"]
[PlyCount "84"]
[EventDate "2019.05.04"]
[EventType "tourn"]
[EventCountry "UZB"]
[SourceTitle "playchess.com"]
[Source "ChessBase"]
[SourceQuality "1"]
[TimeControl "5400+30"]

1. e4 {[%emt 0:00:00]} e5 {[%emt 0:00:00]} 2. Bc4 {[%emt 0:00:59]} Nf6 {[%emt 0:00:16]} 3. d3 {[%emt 0:00:08]} Nc6 {[%emt 0:03:19]} 4. Nf3 {[%emt 0:01:01]} Bc5 {[%emt 0:14:05]} 5. O-O {[%emt 0:01:43]} d6 {[%emt 0:01:47]} 6. Nbd2 {C50: Hungarian Defence and Giuoco Pianissimo} (6. c3 a6 7. a4 h6 8. Nbd2 O-O 9. Re1 Re8 10. Nf1 Ba7 11. Ng3 Be6 12. Bxe6 Rxe6 13. b4 d5 14. Qb3 Qd7 15. h3 Rd8 {0-1 (76) Yu,Y (2751)-Harikrishna,P (2723) Shenzhen 2019}) 6... a6 {[%emt 0:04:45]} 7. a4 {[%emt 0:01:48]} O-O {[%emt 0:04:38]} 8. h3 {[%emt 0:01:02]} h6 {[%emt 0:05:18]} 9. Re1 {[%emt 0:00:44]} Re8 {[%emt 0:00:43]} 10. Nf1 {[%emt 0:00:11]} Be6 $146 {[%emt 0:07:03]} ({Predecessor:} 10... Ne7 11. Be3 Ba7 12. Bxa7 Rxa7 13. a5 {0-1 (36) Chekhani,A-Khosravi Mahmoei,H (1254) Batumi 2016}) 11. Bxe6 {[%emt 0:08:32]} Rxe6 {[%emt 0:00:23]} 12. c3 {[%emt 0:08:06]} Bb6 {[%emt 0:26:04]} 13. Qc2 {[%emt 0:05:54]} d5 {[%emt 0:04:26]} 14. Ne3 {[%emt 0:06:49]} Qd7 {[%emt 0:05:23]} 15. b4 {[%emt 0:30:30]} d4 {[%emt 0:05:54]} 16. Nc4 {[%emt 0:00:50]} dxc3 {[%emt 0:00:16]} 17. Nxb6 {[%emt 0:00:25]} cxb6 {[%emt 0:00:11]} 18. Qxc3 {[%emt 0:00:04]} Rc8 {[%emt 0:05:03]} 19. Qb3 {[%emt 0:06:54]} Qd6 {[%emt 0:05:42]} 20. Rb1 {[%emt 0:02:57]} b5 {[%emt 0:02:36]} 21. axb5 {[%emt 0:00:18]} axb5 {[%emt 0:00:02]} 22. Be3 {[%emt 0:00:21]} Qd7 {[%emt 0:02:19]} 23. Red1 {[%emt 0:01:06]} Nd4 {[%emt 0:00:22]} 24. Bxd4 {[%emt 0:00:21]} exd4 {[%emt 0:00:02]} 25. Rbc1 {[%emt 0:00:15]} Rd8 {[%emt 0:00:45]} 26. Rc2 {[%emt 0:00:40]} Ra6 {[%emt 0:00:35]} 27. Rdc1 {[%emt 0:00:34]} Qe6 {[%emt 0:00:26]} 28. Qb2 {[%emt 0:00:21]} Ra4 {[%emt 0:00:52]} 29. Nxd4 {[%emt 0:04:57]} Qd6 {[%emt 0:00:34]} 30. Rc8 {[%emt 0:02:54]} Kh7 {[%emt 0:00:31]} 31. Nf5 {[%emt 0:01:44]} Qxd3 {[%emt 0:00:18]} 32. Rxd8 {[%emt 0:00:03]} Qxd8 {[%emt 0:00:03]} 33. e5 {[%emt 0:00:07]} Nh5 {[%emt 0:00:55]} 34. Nd6 {[%emt 0:00:47]} Qd7 {[%emt 0:00:11]} 35. Qb1+ {[%emt 0:00:52]} g6 {[%emt 0:00:13]} 36. g4 {[%emt 0:00:03]} Nf4 {[%emt 0:00:11]} 37. Ne4 {[%emt 0:00:41]} Kg7 {[%emt 0:00:27]} 38. e6 {[%emt 0:01:35]} Nxe6 {[%emt 0:01:12]} 39. Rd1 {[%emt 0:00:08]} Qe7 {[%emt 0:00:42]} 40. Qb2+ {[%emt 0:00:25]} f6 {[%emt 0:00:54] [#]} 41. Nxf6 $1 {[%emt 0:00:28]} Rxb4 {[%emt 0:00:19] [#]} 42. Qe5 $18 {[%emt 0:00:14]} Qd8 1-0